fUST/lending_fUST_20250411
["ID","MTS","AMOUNT","RATE_DAILY","PERIOD"]
[357693690,1744332745580,-40000.0,0.00043115,40]
[357693691,1744332745590,-5000.0,0.00043115,90]
[357693692,1744332745601,-5000.0,0.00043115,90]
[357693693,1744332745611,-3070.460665,0.00043115,120]
[357693694,1744332745623,-157.0,0.00043115,31]
[357693695,1744332745633,-253.6,0.00043115,2]
[357693696,1744332745643,-2720.30125989,0.00043115,120]
[357693697,1744332745654,-2004.5142682,0.00043115,120]
[357693698,1744332745665,-15212.0,0.00043115,30]
[357693699,1744332745677,-286.0,0.00043115,120]
[357693700,1744332745688,-1047.4834103,0.00043115,120]
[357693701,1744332745699,-420.0107172,0.00043115,30]
[357693702,1744332745710,-890.89138055,0.00043115,32]
[357693703,1744332745721,-329.68255747,0.00043115,120]
[357693704,1744332745732,-5000946.53180988,0.00043115,30]
[357693705,1744332745743,-1746.0,0.00043115,120]
[357693706,1744332745754,-10505.0,0.00043115,10]
[357693707,1744332745765,-29568.42152613,0.00043115,30]
[357693708,1744332745776,-4894.3494307,0.00043115,2]
[357693709,1744332745786,-665.60048345,0.00043115,7]
[357693710,1744332745797,-1589.0,0.00043115,3]
[357693711,1744332745807,-1776.28415725,0.00043115,3]
[357693712,1744332745817,-1078.11739272,0.00043115,2]
[357693713,1744332745827,-3524.01971609,0.00043115,2]
[357693714,1744332745837,-3021.87284381,0.00043115,2]
[357693715,1744332745847,-28443.54619001,0.00043115,2]
[357693716,1744332745858,-14526.68632577,0.00043115,3]
[357693717,1744332745868,-9605.0,0.00043115,30]
[357693718,1744332745878,-500.0,0.00043115,120]
[357693719,1744332745889,-500.0,0.00043115,120]
[357693720,1744332745899,-500.0,0.00043115,120]
[357693721,1744332745910,-500.0,0.00043115,120]
[357693722,1744332745920,-500.0,0.00043115,120]
[357693723,1744332745930,-500.0,0.00043115,120]
[357693724,1744332745941,-500.0,0.00043115,120]
[357693725,1744332745951,-500.0,0.00043115,120]
[357693726,1744332745961,-500.0,0.00043115,120]
[357693727,1744332745971,-354.38464216,0.00043115,120]
[357693728,1744332745981,-70000.0,0.00043115,120]
[357693729,1744332745992,-254.6012144,0.00043115,120]
[357693730,1744332746003,-319.45006421,0.00043115,120]
[357693731,1744332746013,-225.1050513,0.00043115,16]
[357693732,1744332746023,-169.779999,0.00043115,2]
[357693733,1744332746034,-301540.30903741,0.00043115,60]
[357693734,1744332746044,-159.3633794,0.00043115,2]
[357693735,1744332746054,-500.0,0.00043115,30]
[357693736,1744332746064,-500.0,0.00043115,30]
[357693737,1744332746074,-500.0,0.00043115,30]
[357693738,1744332746084,-271.63717857,0.00043115,30]
[357693739,1744332746095,-11572.17367788,0.00043115,30]
[357693740,1744332746105,-7219.0,0.00043115,30]
[357693741,1744332746115,-50000.0,0.00043115,2]
[357693742,1744332746125,-50000.0,0.00043115,7]
[357693743,1744332746135,-50000.0,0.00043115,30]
[357693744,1744332746144,-300.77962547,0.00043115,2]
[357693745,1744332746155,-1152.28182083,0.00043115,42]
[357693746,1744332746164,-696.10744557,0.00043115,2]
[357693747,1744332746175,-1500.0,0.00043115,30]
[357693748,1744332746185,-211.42623397,0.00043115,2]
[357693749,1744332746195,-165.0,0.00043115,2]
[357693750,1744332746205,-270.8,0.00043115,30]
[357693751,1744332746215,-389.32348942,0.00043115,30]
[357693752,1744332746225,-1000.0,0.00043115,30]
[357693753,1744332746236,-1000.0,0.00043115,30]
[357693754,1744332746466,-1000.0,0.00043115,30]
[357693755,1744332746477,-1000.0,0.00043115,30]
[357693756,1744332746487,-1000.0,0.00043115,30]
[357693757,1744332746497,-1269.353507,0.00043115,30]
[357693758,1744332746507,-250.0,0.00043115,10]
[357693759,1744332746517,-250.0,0.00043115,10]
[357693760,1744332746527,-380.655671,0.00043115,10]
[357693761,1744332746537,-500.0,0.00043118,120]
[357693762,1744332746546,-500.0,0.00043218,120]
[357693763,1744332746556,-264.2458827,0.000433,120]
[357693764,1744332746565,-500.0,0.00043318,120]
[357693765,1744332746576,-3471.78730651,0.00043416,120]
[357693766,1744332746586,-500.0,0.00043418,120]
[357693767,1744332746595,-134581.0,0.000435,30]
[357693768,1744332746605,-500.0,0.00043518,120]
[357693769,1744332746615,-30000.0,0.0004359,40]
[357693770,1744332746625,-500.0,0.00043618,120]
[357693771,1744332746635,-412.0,0.00043673,90]
[357693772,1744332746644,-599.53,0.000437,30]
[357693773,1744332746654,-500.0,0.00043718,120]
[357693774,1744332746664,-500.0,0.00043818,120]
[357693775,1744332746674,-499.29835568,0.00043835,2]
[357693776,1744332746687,-2897.5,0.00043835,120]
[357693777,1744332746697,-1000.0,0.00043835,120]
[357693778,1744332746708,-377.65,0.00043836,30]
[357693779,1744332746719,-1000.0,0.00043863,120]
[357693780,1744332746728,-1000.0,0.0004389,120]
[357693781,1744332746738,-2154.74839985,0.000439,120]
[357693782,1744332746748,-1000.0,0.00043917,120]
[357693783,1744332746760,-500.0,0.00043918,120]
[357693784,1744332746770,-1000.0,0.00043945,120]
[357693785,1744332746780,-50000.0,0.0004395,120]
[357693786,1744332746790,-1000.0,0.00043972,120]
[357693787,1744332746799,-15091.85,0.00043987,30]
[357693788,1744332746810,-1000.0,0.00043999,120]
[357693789,1744332746819,-160.0,0.00044,120]
[357693790,1744332746831,-1000.57057578,0.00044,2]
[357693791,1744332746840,-999.32137538,0.00044,30]
[357693792,1744332746850,-195543.28908,0.00044,30]
[357693793,1744332746860,-500.0,0.00044018,120]
[357693794,1744332746870,-1000.0,0.00044027,120]
[357693795,1744332746880,-1000.0,0.00044054,120]
[357693796,1744332746891,-1000.0,0.00044082,120]
[357693797,1744332746901,-1000.0,0.00044109,120]
[357693798,1744332746911,-153.91020217,0.00044115,120]
[357693799,1744332746921,-185473.31367423,0.00044115,3]
[357693800,1744332746931,-10000.0,0.00044115,30]
[357693801,1744332746941,-10000.0,0.00044115,40]
[357693802,1744332746950,-30000.0,0.00044115,40]
[357693803,1744332746960,-10000.0,0.00044115,50]
[357693804,1744332746970,-10000.0,0.00044115,50]
[357693805,1744332746980,-10000.0,0.00044115,30]
[357693806,1744332746990,-20000.0,0.00044115,40]
[357693807,1744332747000,-20000.0,0.00044115,50]
[357693808,1744332747009,-20000.0,0.00044115,60]
[357693809,1744332747019,-20000.0,0.00044115,30]
[357693810,1744332747029,-10000.0,0.00044115,40]
[357693811,1744332747039,-500.0,0.00044118,120]
[357693812,1744332747049,-594.2086054,0.00044136,120]
[357693813,1744332747058,-219.27755,0.000442,120]
[357693814,1744332747068,-200.0,0.00044201,120]
[357693815,1744332747079,-500.0,0.00044218,120]
[357693816,1744332747089,-412.0,0.00044289,90]
[357693817,1744332747098,-1908.0,0.000443,120]
[357693818,1744332747109,-2897.5,0.00044301,120]
[357693819,1744332747119,-500.0,0.00044318,120]
[357693820,1744332747128,-500.0,0.00044418,120]
[357693821,1744332747138,-200.0,0.0004448,67]
[357693822,1744332747148,-151.0,0.0004451,30]
[357693823,1744332747159,-500.0,0.00044518,120]
[357693824,1744332747169,-151.0,0.00044592,30]
[357693825,1744332747179,-500.0,0.00044618,120]
[357693826,1744332747188,-990.5548126,0.0004468,60]
[357693827,1744332747198,-500.0,0.00044718,120]
[357693828,1744332747208,-151.0,0.00044742,30]
[357693829,1744332747218,-2897.5,0.00044767,120]
[357693830,1744332747228,-151.0,0.00044784,30]
[357693831,1744332747238,-370.0,0.000448,120]
[357693832,1744332747247,-193.19221166,0.00044811,30]
[357693833,1744332747257,-500.0,0.00044818,120]
[357693834,1744332747267,-500.0,0.00044918,120]
[357693835,1744332747277,-1906.93435894,0.00044932,10]
[357693836,1744332747287,-362.19133297,0.00044945,10]
[357693837,1744332747297,-2000.0,0.00044945,10]
[357693838,1744332747306,-239.43858688,0.00044945,7]
[357693839,1744332747316,-2000.0,0.00044945,7]
[357693840,1744332747326,-764.65067899,0.00044945,7]
[357693841,1744332747336,-2000.0,0.00044945,10]
[357693842,1744332747345,-1955.59205259,0.00044945,10]
[357693843,1744332747355,-487.28426467,0.00044945,10]
[357693844,1744332747364,-2020.55255652,0.00044945,10]
[357693845,1744332747374,-2000.0,0.00044945,10]
[357693846,1744332747384,-2000.0,0.00044945,10]
[357693847,1744332747393,-2000.0,0.00044945,10]
[357693848,1744332747402,-2000.0,0.00044945,7]
[357693849,1744332747412,-2000.0,0.00044945,10]
[357693850,1744332747422,-500.0,0.00044945,10]
[357693851,1744332747432,-2000.0,0.00044945,10]
[357693852,1744332747442,-2000.0,0.00044945,3]
[357693853,1744332747452,-2000.0,0.00044945,10]
[357693854,1744332747462,-2000.0,0.00044945,10]
[357693855,1744332747471,-2000.0,0.00044945,10]
[357693856,1744332747481,-2000.0,0.00044945,10]
[357693857,1744332747491,-2000.0,0.00044945,10]
[357693858,1744332747500,-10000.0,0.00045,30]
[357693859,1744332747509,-189.0,0.00045,120]
[357693860,1744332747519,-3709.89646738,0.00045,30]
[357693861,1744332747528,-364.55732295,0.00045,120]
[357693862,1744332747537,-445.372,0.00045,120]
[357693863,1744332747547,-1838.37803164,0.00045,120]
[357693864,1744332747556,-151.0,0.00045,120]
[357693865,1744332747566,-7276.64,0.00045,30]
[357693866,1744332747575,-10909.84,0.00045,30]
[357693867,1744332747585,-448804.67,0.00045,30]
[357693868,1744332747594,-23689.52242477,0.00045,30]
[357693869,1744332747604,-7327.1,0.00045,120]
[357693870,1744332747613,-51440.51,0.00045,120]
[357693871,1744332747622,-2000.0,0.00045,120]
[357693872,1744332747633,-2076.49061,0.00045,120]
[357693873,1744332747643,-822.0,0.00045,120]
[357693874,1744332747653,-1227.6,0.00045,14]
[357693875,1744332747662,-997.0,0.00045,120]
[357693876,1744332747672,-10029.07353751,0.00045,120]
[357693877,1744332747684,-5040.0,0.00045,30]
[357693878,1744332747694,-271.865,0.00045,120]
[357693879,1744332747704,-20053.1386758,0.00045,120]
[357693880,1744332747713,-245.93461535,0.00045,120]
[357693881,1744332747723,-3910.92692264,0.00045,2]
[357693882,1744332747733,-2035.37792902,0.00045,120]
[357693883,1744332747742,-267.0,0.00045,2]
[357693884,1744332747752,-267.0,0.00045,2]
[357693885,1744332747762,-500.0,0.00045018,120]
[357693886,1744332747772,-151.0,0.00045058,30]
[357693887,1744332747782,-500.0,0.00045118,120]
[357693888,1744332747791,-516.50472355,0.00045205,7]
[357693889,1744332747801,-500.0,0.00045218,120]
[357693890,1744332747811,-2897.5,0.00045232,120]
[357693891,1744332747820,-412.0,0.0004529,90]
[357693892,1744332747832,-151.0,0.00045304,30]
[357693893,1744332747841,-500.0,0.00045318,120]
[357693894,1744332747851,-500.0,0.00045418,120]
[357693895,1744332747861,-1962.75644367,0.00045445,10]
[357693896,1744332747871,-2000.0,0.00045445,10]
[357693897,1744332747880,-949.81108598,0.00045445,10]
[357693898,1744332747890,-1510.7924933,0.00045445,10]
[357693899,1744332747900,-1007.89352085,0.00045445,10]
[357693900,1744332747910,-2000.0,0.00045445,10]
[357693901,1744332747919,-1519.78113434,0.00045445,10]
[357693902,1744332747929,-1006.57904888,0.00045445,10]
[357693903,1744332747938,-2000.0,0.00045445,10]
[357693904,1744332747948,-2000.98161225,0.00045445,10]
[357693905,1744332747957,-2000.0,0.00045445,10]
[357693906,1744332747966,-524.04787234,0.00045445,10]
[357693907,1744332747976,-151.0,0.00045455,30]
[357693908,1744332747985,-500.0,0.00045518,120]
[357693909,1744332747994,-500.0,0.00045618,120]
[357693910,1744332748003,-151.0,0.00045619,30]
[357693911,1744332748013,-5865.22914513,0.00045628,90]
[357693912,1744332748022,-2897.5,0.00045698,120]
[357693913,1744332748032,-500.0,0.00045718,120]
[357693914,1744332748041,-500.0,0.00045818,120]
[357693915,1744332748051,-230.89365073,0.0004588,30]
[357693916,1744332748060,-460.0,0.000459,120]
[357693917,1744332748069,-399.47277812,0.0004599,2]
[357693918,1744332748079,-2690.0,0.00046,120]
[357693919,1744332748088,-787.15351182,0.00046,120]
[357693920,1744332748098,-300.0,0.00046,120]
[357693921,1744332748107,-3287.53481865,0.00046,120]
[357693922,1744332748117,-12156.42,0.00046,30]
[357693923,1744332748126,-10438.0,0.00046,120]
[357693924,1744332748135,-109527.35854638,0.00046,120]
[357693925,1744332748144,-10022.07440306,0.00046,120]
[357693926,1744332748154,-1161.0,0.00046,120]
[357693927,1744332748163,-2897.5,0.00046164,120]
[357693928,1744332748172,-151.0,0.00046195,30]
[357693929,1744332748183,-412.0,0.00046214,90]
[357693930,1744332748192,-151.0,0.00046249,30]
[357693931,1744332748202,-379.28657096,0.00046491,120]
[357693932,1744332748212,-2508.03,0.000465,120]
[357693933,1744332748222,-1000.0,0.00046532,120]
[357693934,1744332748231,-110482.98693274,0.00046574,78]
[357693935,1744332748241,-500.0,0.00046575,120]
[357693936,1744332748252,-500.0,0.00046575,120]
[357693937,1744332748261,-500.0,0.00046575,120]
[357693938,1744332748271,-614.8495528,0.00046575,120]
[357693939,1744332748282,-234.98328365,0.00046575,120]
[357693940,1744332748292,-282.54,0.000466,120]
[357693941,1744332748301,-2897.5,0.0004663,120]
[357693942,1744332748310,-30000.0,0.000467,30]
[357693943,1744332748320,-151.0,0.00046729,30]
[357693944,1744332748330,-151.0,0.00046866,30]
[357693945,1744332748340,-151.0,0.00046879,30]
[357693946,1744332748350,-151.0,0.00046879,30]
[357693947,1744332748359,-412.0,0.00046908,90]
[357693948,1744332748369,-200.0,0.0004691,74]
[357693949,1744332748379,-4441.42041987,0.00046947,120]
[357693950,1744332748388,-4441.42041987,0.00046977,120]
[357693951,1744332748398,-4441.42041987,0.0004698,120]
[357693952,1744332748407,-4441.42041987,0.00046985,120]
[357693953,1744332748417,-1433.1874938,0.00047,120]
[357693954,1744332748426,-2897.5,0.00047095,120]
[357693955,1744332748436,-5000.0,0.000472,120]
[357693956,1744332748446,-517.86670782,0.00047397,2]
[357693957,1744332748455,-500000.0,0.0004744,30]
[357693958,1744332748465,-8370.217345,0.000475,120]
[357693959,1744332748475,-23798.21,0.000475,120]
[357693960,1744332748484,-2897.5,0.00047561,120]
[357693961,1744332748493,-155.79006966,0.000478,120]
[357693962,1744332748503,-178.35234901,0.000479,120]
[357693963,1744332748512,-13692.98725,0.000479,2]
[357693964,1744332748522,-160.0,0.00048,120]
[357693965,1744332748532,-12619.0,0.00048,120]
[357693966,1744332748541,-1361.42,0.00048,30]
[357693967,1744332748551,-194.50755206,0.00048,3]
[357693968,1744332748560,-1500.0,0.00048,60]
[357693969,1744332748570,-89075.079,0.00048,120]
[357693970,1744332748581,-216.79272015,0.00048,2]
[357693971,1744332748591,-1161.0,0.00048,120]
[357693972,1744332748602,-267.0,0.00048,2]
[357693973,1744332748612,-2897.5,0.00048027,120]
[357693974,1744332748621,-2897.5,0.00048493,120]
[357693975,1744332748632,-50000.0,0.000485,120]
[357693976,1744332748642,-412.0,0.00048525,90]
[357693977,1744332748652,-9301.0,0.000486,120]
[357693978,1744332748662,-3703.3052693,0.000488,120]
[357693979,1744332748673,-2897.5,0.00048958,120]
[357693980,1744332748686,-5000.0,0.00049,120]
[357693981,1744332748696,-9150.94566,0.00049,2]
[357693982,1744332748708,-43620.1,0.00049015,6]
[357693983,1744332748719,-5000.0,0.000492,120]
[357693984,1744332748728,-234.50651469,0.00049315,120]
[357693985,1744332748738,-500.0,0.00049315,2]
[357693986,1744332748749,-500.0,0.00049315,2]
[357693987,1744332748759,-500.0,0.00049315,2]
[357693988,1744332748769,-500.0,0.00049315,2]
[357693989,1744332748778,-282.24365162,0.00049315,2]
[357693990,1744332748788,-750.0,0.00049315,120]
[357693991,1744332748798,-750.0,0.00049315,120]
[357693992,1744332748808,-750.0,0.00049315,120]
[357693993,1744332748818,-750.0,0.00049315,120]
[357693994,1744332748829,-750.0,0.00049315,120]
[357693995,1744332748838,-750.0,0.00049315,120]
[357693996,1744332748848,-750.0,0.00049315,120]
[357693997,1744332748857,-750.0,0.00049315,120]
[357693998,1744332748866,-750.0,0.00049315,120]
[357693999,1744332748876,-750.0,0.00049315,120]
[357694000,1744332748886,-750.0,0.00049315,120]
[357694001,1744332748896,-750.0,0.00049315,120]
[357694002,1744332748906,-750.0,0.00049315,120]
[357694003,1744332748915,-750.0,0.00049315,120]
[357694004,1744332748925,-750.0,0.00049315,120]
[357694005,1744332748934,-750.0,0.00049315,120]
[357694006,1744332748944,-750.0,0.00049315,120]
[357694007,1744332748954,-750.0,0.00049315,120]
[357694008,1744332748963,-750.0,0.00049315,120]
[357694009,1744332748973,-750.0,0.00049315,120]
[357694010,1744332748983,-245.84359035,0.00049315,120]
[357694011,1744332748992,-1000.0,0.00049315,60]
[357694012,1744332749001,-1000.0,0.00049315,60]
[357694013,1744332749011,-1000.0,0.00049315,60]
[357694014,1744332749020,-1000.0,0.00049315,60]
[357694015,1744332749029,-1000.0,0.00049315,60]
[357694016,1744332749039,-1000.0,0.00049315,60]
[357694017,1744332749049,-1000.0,0.00049315,60]
[357694018,1744332749058,-1000.0,0.00049315,60]
[357694019,1744332749068,-289.02774876,0.00049315,60]
[357694020,1744332749077,-2000.0,0.00049315,120]
[357694021,1744332749087,-2000.0,0.00049315,120]
[357694022,1744332749096,-2000.0,0.00049315,120]
[357694023,1744332749106,-2000.0,0.00049315,120]
[357694024,1744332749115,-500.0,0.00049315,120]
[357694025,1744332749125,-500.0,0.00049315,120]
[357694026,1744332749134,-500.0,0.00049315,120]
[357694027,1744332749144,-500.0,0.00049315,120]
[357694028,1744332749153,-500.0,0.00049315,120]
[357694029,1744332749163,-500.0,0.00049315,120]
[357694030,1744332749173,-500.0,0.00049315,120]
[357694031,1744332749183,-617.49098656,0.00049315,120]
[357694032,1744332749192,-151.0,0.00049315,120]
[357694033,1744332749202,-151.0,0.00049315,120]
[357694034,1744332749211,-153.380136,0.00049315,120]
[357694035,1744332749221,-540.32039843,0.0004932,120]
[357694036,1744332749231,-540.32039843,0.0004932,120]
[357694037,1744332749240,-540.32039843,0.0004932,120]
[357694038,1744332749249,-540.32039843,0.0004932,120]
[357694039,1744332749259,-540.32039843,0.0004932,120]
[357694040,1744332749268,-540.32039843,0.0004932,120]
[357694041,1744332749278,-540.32039843,0.0004932,120]
[357694042,1744332749287,-540.32039843,0.0004932,120]
[357694043,1744332749296,-540.32039843,0.0004932,120]
[357694044,1744332749305,-540.32039843,0.0004932,120]
[357694045,1744332749314,-540.32039843,0.0004932,120]
[357694046,1744332749324,-540.32039843,0.0004932,120]
[357694047,1744332749334,-540.32039843,0.0004932,120]
[357694048,1744332749343,-540.32039843,0.0004932,120]
[357694049,1744332749352,-540.32039843,0.0004932,120]
[357694050,1744332749362,-540.32039843,0.0004932,120]
[357694051,1744332749371,-540.32039843,0.0004932,120]
[357694052,1744332749381,-540.32039843,0.0004932,120]
[357694053,1744332749391,-540.32039843,0.0004932,120]
[357694054,1744332749400,-540.32,0.0004932,120]
[357694055,1744332749410,-1260.74759633,0.0004932,120]
[357694056,1744332749419,-1260.74759633,0.0004932,120]
[357694057,1744332749429,-1260.74759633,0.0004932,120]
[357694058,1744332749439,-1260.74759633,0.0004932,120]
[357694059,1744332749448,-1260.74759633,0.0004932,120]
[357694060,1744332749683,-1260.74759633,0.0004932,120]
[357694061,1744332749694,-1260.74759633,0.0004932,120]
[357694062,1744332749704,-1260.74759633,0.0004932,120]
[357694063,1744332749714,-1260.74759633,0.0004932,120]
[357694064,1744332749724,-1260.74759633,0.0004932,120]
[357694065,1744332749733,-1260.74759633,0.0004932,120]
[357694066,1744332749743,-1260.74759633,0.0004932,120]
[357694067,1744332749754,-1260.74759633,0.0004932,120]
[357694068,1744332749765,-1260.74759633,0.0004932,120]
[357694069,1744332749775,-1260.74759633,0.0004932,120]
[357694070,1744332749785,-1260.74759633,0.0004932,120]
[357694071,1744332749795,-1260.74759633,0.0004932,120]
[357694072,1744332749805,-1260.74759633,0.0004932,120]
[357694073,1744332749815,-1260.74759633,0.0004932,120]
[357694074,1744332749825,-1260.74,0.0004932,120]
[357694075,1744332749836,-292.06467408,0.0004932,120]
[357694076,1744332749846,-292.06467408,0.0004932,120]
[357694077,1744332749856,-292.06467408,0.0004932,120]
[357694078,1744332749866,-292.06467408,0.0004932,120]
[357694079,1744332749876,-292.06467408,0.0004932,120]
[357694080,1744332749885,-292.06467408,0.0004932,120]
[357694081,1744332749895,-292.06467408,0.0004932,120]
[357694082,1744332749904,-292.06467408,0.0004932,120]
[357694083,1744332749914,-292.06467408,0.0004932,120]
[357694084,1744332749924,-292.06467408,0.0004932,120]
[357694085,1744332749934,-292.06467408,0.0004932,120]
[357694086,1744332749944,-292.06467408,0.0004932,120]
[357694087,1744332749953,-292.06467408,0.0004932,120]
[357694088,1744332749963,-292.06467408,0.0004932,120]
[357694089,1744332749972,-292.06467408,0.0004932,120]
[357694090,1744332749982,-292.06467408,0.0004932,120]
[357694091,1744332749992,-292.06467408,0.0004932,120]
[357694092,1744332750002,-292.06467408,0.0004932,120]
[357694093,1744332750019,-292.06467408,0.0004932,120]
[357694094,1744332750030,-292.06,0.0004932,120]
[357694095,1744332750040,-681.48423952,0.0004932,120]
[357694096,1744332750051,-681.48423952,0.0004932,120]
[357694097,1744332750062,-681.48423952,0.0004932,120]
[357694098,1744332750072,-681.48423952,0.0004932,120]
[357694099,1744332750083,-681.48423952,0.0004932,120]
[357694100,1744332750094,-681.48423952,0.0004932,120]
[357694101,1744332750104,-681.48423952,0.0004932,120]
[357694102,1744332750115,-681.48423952,0.0004932,120]
[357694103,1744332750125,-681.48423952,0.0004932,120]
[357694104,1744332750135,-681.48423952,0.0004932,120]
[357694105,1744332750147,-681.48423952,0.0004932,120]
[357694106,1744332750158,-681.48423952,0.0004932,120]
[357694107,1744332750168,-681.48423952,0.0004932,120]
[357694108,1744332750179,-681.48423952,0.0004932,120]
[357694109,1744332750190,-681.48423952,0.0004932,120]
[357694110,1744332750200,-681.48423952,0.0004932,120]
[357694111,1744332750211,-681.48423952,0.0004932,120]
[357694112,1744332750221,-681.48423952,0.0004932,120]
[357694113,1744332750231,-681.48423952,0.0004932,120]
[357694114,1744332750242,-681.48,0.0004932,120]
[357694115,1744332750253,-168.33178167,0.0004932,120]
[357694116,1744332750263,-168.33178167,0.0004932,120]
[357694117,1744332750274,-168.33178167,0.0004932,120]
[357694118,1744332750284,-168.33,0.0004932,120]
[357694119,1744332750295,-157.10966289,0.0004932,120]
[357694120,1744332750305,-157.10966289,0.0004932,120]
[357694121,1744332750315,-157.10966289,0.0004932,120]
[357694122,1744332750325,-157.10966289,0.0004932,120]
[357694123,1744332750337,-157.10966289,0.0004932,120]
[357694124,1744332750347,-157.10966289,0.0004932,120]
[357694125,1744332750357,-157.10966289,0.0004932,120]
[357694126,1744332750368,-157.10966289,0.0004932,120]
[357694127,1744332750378,-157.10966289,0.0004932,120]
[357694128,1744332750388,-157.1,0.0004932,120]
[357694129,1744332750398,-200.0,0.0004934,80]
[357694130,1744332750408,-2897.5,0.00049424,120]
[357694131,1744332750419,-400.0055,0.00049496,120]
[357694132,1744332750429,-2081.02453833,0.000495,120]
[357694133,1744332750439,-200.0,0.000497,120]
[357694134,1744332750450,-350.8285,0.000497,120]
[357694135,1744332750460,-200.0,0.000497,120]
[357694136,1744332750470,-200.0,0.000497,120]
[357694137,1744332750481,-203.67407,0.000497,120]
[357694138,1744332750492,-166229.77,0.000497,6]
[357694139,1744332750502,-178.22,0.000497,6]
[357694140,1744332750512,-250.0,0.00049863,10]
[357694141,1744332750522,-10167.44815282,0.0004989,120]
[357694142,1744332750533,-2897.5,0.0004989,120]
[357694143,1744332750543,-190.9,0.0005,120]
[357694144,1744332750553,-160.0,0.0005,120]
[357694145,1744332750563,-217.768513,0.0005,30]
[357694146,1744332750574,-200.0,0.0005,14]
[357694147,1744332750584,-2615.0,0.0005,120]
[357694148,1744332750594,-7000.0,0.0005,120]
[357694149,1744332750604,-101803.06352716,0.0005,120]
[357694150,1744332750614,-6904.0,0.0005,120]
[357694151,1744332750628,-27726.69783041,0.0005,30]
[357694152,1744332751458,-200.0,0.00016428,2]
[357694153,1744332751469,-216.324298,0.00016438,2]
[357694154,1744332751478,-216.324298,0.00016438,2]
[357694155,1744332751488,-216.324298,0.00016438,2]
[357694156,1744332751497,-216.324298,0.00016438,2]
[357694157,1744332751507,-207.4,0.00017797,2]
[357694158,1744332751516,-527.61,0.0001863,2]
[357694159,1744332751527,-382.86981758,0.0001863,2]
[357694162,1744333288345,1051.18,0.00025001,120]
[357694205,1744333832710,-300.0,0.0001534,2]
[357694207,1744333832721,-215.63856918,0.0001534,2]
[357694209,1744333832731,-23629.5226485,0.00015341,2]
[357694211,1744333832741,-250.0,0.00015487,2]
[357694213,1744333832751,-348.26054018,0.00016276,2]
[357694215,1744333832761,-160.0,0.00016286,2]
[357694217,1744333832771,-175.59360631,0.00016288,2]
[357694219,1744333832781,-170738.39541858,0.0001633,2]
[357694221,1744333832791,-419.64641374,0.00016373,2]
[357694223,1744333832800,-252.21,0.000164,2]
[357694226,1744333832811,-948.78,0.00016438,2]
[357694228,1744333832820,-500.0,0.00016438,2]
[357694230,1744333832830,-500.0,0.00016438,2]
[357694232,1744333832842,-500.0,0.00016438,2]
[357694234,1744333832854,-500.0,0.00016438,2]
[357694237,1744333832867,-500.0,0.00016438,2]
[357694239,1744333832878,-500.0,0.00016438,2]
[357694240,1744333832889,-500.0,0.00016438,2]
[357694241,1744333832899,-500.0,0.00016438,2]
[357694242,1744333832911,-500.0,0.00016438,2]
[357694243,1744333832921,-500.0,0.00016438,2]
[357694244,1744333832932,-500.0,0.00016438,2]
[357694245,1744333832943,-500.0,0.00016438,2]
[357694246,1744333832955,-500.0,0.00016438,2]
[357694247,1744333832966,-500.0,0.00016438,2]
[357694248,1744333832978,-500.0,0.00016438,2]
[357694249,1744333832989,-500.0,0.00016438,2]
[357694250,1744333833000,-500.0,0.00016438,2]
[357694251,1744333833014,-500.0,0.00016438,2]